[Event "*** Monthly 3|2 Blitz Masters"]
[Site "Chess.com"]
[Date "2014.10.28"]
[Round "6"]
[White "JamesColeman"]
[Black "marabu44"]
[Result "1/2-1/2"]
[WhiteElo "2303"]
[BlackElo "2217"]
[TimeControl "180+2"]
[EndTime "13:04:50 PDT"]
[Termination "Game drawn by stalemate"]

1. d4 {[%clk 0:03:00]} 1... e6 {[%clk 0:02:58.3]} 2. Nf3 {[%clk 0:03:00.9]} 2...
f5 {[%clk 0:02:56.2]} 3. d5 {[%clk 0:03:02.2]} 3... Nf6 {[%clk 0:02:52.5]} 4.
dxe6 {[%clk 0:03:03]} 4... d5 {[%clk 0:02:53]} 5. Ng5 {[%clk 0:03:03.7]} 5...
Qe7 {[%clk 0:02:51.9]} 6. c4 {[%clk 0:03:04.5]} 6... Bxe6 {[%clk 0:02:49.1]} 7.
Nxe6 {[%clk 0:03:05.8]} 7... Qxe6 {[%clk 0:02:50.3]} 8. cxd5 {[%clk 0:03:06.4]}
8... Qxd5 {[%clk 0:02:51.1]} 9. Qxd5 {[%clk 0:03:05.8]} 9... Nxd5 {[%clk
0:02:52]} 10. Bd2 {[%clk 0:03:06]} 10... Nc6 {[%clk 0:02:51.6]} 11. Nc3 {[%clk
0:03:06.8]} 11... Nxc3 {[%clk 0:02:50.2]} 12. Bxc3 {[%clk 0:03:08.7]} 12... Bb4
{[%clk 0:02:50.8]} 13. Bxb4 {[%clk 0:03:03.1]} 13... Nxb4 {[%clk 0:02:51.8]} 14.
Rc1 {[%clk 0:03:04.9]} 14... O-O-O {[%clk 0:02:49.1]} 15. a3 {[%clk 0:03:02.2]}
15... Nd5 {[%clk 0:02:48.6]} 16. e3 {[%clk 0:03:02.3]} 16... Rhf8 {[%clk
0:02:48.7]} 17. Bc4 {[%clk 0:03:02.8]} 17... f4 {[%clk 0:02:42.7]} 18. O-O
{[%clk 0:02:52.6]} 18... fxe3 {[%clk 0:02:41.4]} 19. Bxd5 {[%clk 0:02:20.7]}
19... exf2+ {[%clk 0:02:41.7]} 20. Rxf2 {[%clk 0:02:22]} 20... Rxf2 {[%clk
0:02:29.7]} 21. Be6+ {[%clk 0:02:23]} 21... Kb8 {[%clk 0:02:31.1]} 22. Kxf2
{[%clk 0:02:24.8]} 22... Rd2+ {[%clk 0:02:32.2]} 23. Kg3 {[%clk 0:02:23.6]}
23... Rxb2 {[%clk 0:02:32.4]} 24. Rf1 {[%clk 0:02:23.6]} 24... a5 {[%clk
0:02:17.2]} 25. Rf8+ {[%clk 0:02:23]} 25... Ka7 {[%clk 0:02:17.9]} 26. Rf7
{[%clk 0:02:24.2]} 26... Rb6 {[%clk 0:02:17.5]} 27. Bg4 {[%clk 0:02:15]} 27...
Rb3+ {[%clk 0:02:16.8]} 28. Rf3 {[%clk 0:02:16.4]} 28... Rxf3+ {[%clk
0:02:16.4]} 29. Bxf3 {[%clk 0:02:18.3]} 29... b5 {[%clk 0:02:15.9]} 30. Kf4
{[%clk 0:02:16.6]} 30... Kb6 {[%clk 0:02:16.5]} 31. Ke5 {[%clk 0:02:16.8]} 31...
Kc5 {[%clk 0:02:17.7]} 32. Ke4 {[%clk 0:02:12.3]} 32... b4 {[%clk 0:02:16.5]}
33. axb4+ {[%clk 0:01:49.4]} 33... Kxb4 {[%clk 0:02:12.9]} 34. Kd3 {[%clk
0:01:50.6]} 34... Kb3 {[%clk 0:01:49.4]} 35. Bd5+ {[%clk 0:01:39.8]} 35... Kb4
{[%clk 0:01:48.8]} 36. Bg8 {[%clk 0:01:39.2]} 36... h6 {[%clk 0:01:48.6]} 37. h4
{[%clk 0:01:39.2]} 37... a4 {[%clk 0:01:46.2]} 38. g4 {[%clk 0:01:39.3]} 38...
Kc5 {[%clk 0:01:38.7]} 39. g5 {[%clk 0:01:40]} 39... hxg5 {[%clk 0:01:38.3]} 40.
hxg5 {[%clk 0:01:41.9]} 40... Kb4 {[%clk 0:01:26.9]} 41. g6 {[%clk 0:01:33.6]}
41... Kc5 {[%clk 0:01:19.4]} 42. Ke4 {[%clk 0:01:30.9]} 42... Kd6 {[%clk
0:01:08.5]} 43. Kd4 {[%clk 0:01:26.9]} 43... c5+ {[%clk 0:00:39.3]} 44. Kc4
{[%clk 0:01:27]} 44... Kc6 {[%clk 0:00:38.6]} 45. Bd5+ {[%clk 0:01:25.5]} 45...
Kd6 {[%clk 0:00:39.4]} 46. Be4 {[%clk 0:01:23.8]} 46... Ke5 {[%clk 0:00:39.1]}
47. Bb1 {[%clk 0:01:22.5]} 47... Kd6 {[%clk 0:00:35.4]} 48. Kb5 {[%clk 0:01:16]}
48... a3 {[%clk 0:00:36]} 49. Ka4 {[%clk 0:01:16.8]} 49... Kd5 {[%clk
0:00:27.8]} 50. Kxa3 {[%clk 0:01:17.5]} 50... Kd4 {[%clk 0:00:29.2]} 51. Kb2
{[%clk 0:01:16.5]} 51... Kc4 {[%clk 0:00:29.1]} 52. Kc2 {[%clk 0:01:16.1]} 52...
Kd4 {[%clk 0:00:30.4]} 53. Kd2 {[%clk 0:01:15.8]} 53... Ke5 {[%clk 0:00:29.5]}
54. Kc3 {[%clk 0:01:16.9]} 54... Kf6 {[%clk 0:00:29.4]} 55. Kc4 {[%clk
0:01:18.3]} 55... Ke7 {[%clk 0:00:30.5]} 56. Kxc5 {[%clk 0:01:19.8]} 56... Ke6
{[%clk 0:00:31.6]} 57. Kd4 {[%clk 0:01:18.9]} 57... Kf6 {[%clk 0:00:31.1]} 58.
Kd5 {[%clk 0:01:15.9]} 58... Ke7 {[%clk 0:00:31.3]} 59. Kc6 {[%clk 0:01:17.2]}
59... Ke6 {[%clk 0:00:32.2]} 60. Kc7 {[%clk 0:01:18.5]} 60... Ke7 {[%clk
0:00:33.5]} 61. Kc8 {[%clk 0:01:19.8]} 61... Ke8 {[%clk 0:00:34.7]} 62. Ba2
{[%clk 0:01:20]} 62... Ke7 {[%clk 0:00:36]} 63. Bf7 {[%clk 0:01:21.2]} 63... Kf8
{[%clk 0:00:36.8]} 64. Bb3 {[%clk 0:01:21.3]} 64... Ke7 {[%clk 0:00:37.8]} 65.
Bc2 {[%clk 0:01:23.2]} 65... Ke8 {[%clk 0:00:38.8]} 66. Kc7 {[%clk 0:01:24.4]}
66... Ke7 {[%clk 0:00:40.3]} 67. Kc6 {[%clk 0:01:26]} 67... Kf8 {[%clk
0:00:41.5]} 68. Bb3 {[%clk 0:01:26.1]} 68... Ke7 {[%clk 0:00:42.8]} 69. Kd5
{[%clk 0:01:26.6]} 69... Kf6 {[%clk 0:00:44.2]} 70. Bc2 {[%clk 0:01:27.7]} 70...
Ke7 {[%clk 0:00:45.4]} 71. Ke5 {[%clk 0:01:28.7]} 71... Kf8 {[%clk 0:00:46.7]}
72. Bb3 {[%clk 0:01:30.2]} 72... Ke7 {[%clk 0:00:47.6]} 73. Kd4 {[%clk
0:01:28.5]} 73... Kf6 {[%clk 0:00:48.6]} 74. Bc2 {[%clk 0:01:29.2]} 74... Ke6
{[%clk 0:00:49.3]} 75. Kc5 {[%clk 0:01:30.1]} 75... Ke5 {[%clk 0:00:49.3]} 76.
Kc6 {[%clk 0:01:26.4]} 76... Ke6 {[%clk 0:00:50.6]} 77. Kc7 {[%clk 0:01:28]}
77... Ke7 {[%clk 0:00:51.9]} 78. Bb3 {[%clk 0:01:29.4]} 78... Ke8 {[%clk
0:00:52.2]} 79. Kd6 {[%clk 0:01:27.6]} 79... Kf8 {[%clk 0:00:52.1]} 80. Ke6
{[%clk 0:01:27.6]} 80... Kg8 {[%clk 0:00:53.1]} 81. Kf5+ {[%clk 0:01:27.8]}
81... Kh8 {[%clk 0:00:54.5]} 82. Bf7 {[%clk 0:01:29.7]} 1/2-1/2

[Event "*** Monthly 3|2 Blitz Masters"]
[Site "Chess.com"]
[Date "2014.10.28"]
[Round "6"]
[White "alexsuper1987"]
[Black "mat_kolosowski"]
[Result "0-1"]
[WhiteElo "2057"]
[BlackElo "2343"]
[TimeControl "180+2"]
[EndTime "13:05:08 PDT"]
[Termination "mat_kolosowski won by resignation"]

1. e4 {[%clk 0:03:00]} 1... c5 {[%clk 0:02:58.7]} 2. c3 {[%clk 0:03:00.6]} 2...
Nf6 {[%clk 0:02:59]} 3. e5 {[%clk 0:03:01.7]} 3... Nd5 {[%clk 0:03:00.6]} 4. d4
{[%clk 0:03:03.2]} 4... cxd4 {[%clk 0:03:01.9]} 5. Nf3 {[%clk 0:03:04.4]} 5...
e6 {[%clk 0:03:03.3]} 6. cxd4 {[%clk 0:03:05.6]} 6... b6 {[%clk 0:03:04.7]} 7.
Nc3 {[%clk 0:03:06.1]} 7... Nxc3 {[%clk 0:03:06.2]} 8. bxc3 {[%clk 0:03:08]}
8... Qc7 {[%clk 0:03:07.8]} 9. Bd2 {[%clk 0:03:07.4]} 9... Bb7 {[%clk
0:03:09.2]} 10. Bd3 {[%clk 0:03:08.1]} 10... d6 {[%clk 0:03:09.9]} 11. O-O
{[%clk 0:03:04.2]} 11... Nd7 {[%clk 0:03:10.9]} 12. Ng5 {[%clk 0:03:05.4]} 12...
dxe5 {[%clk 0:02:56.6]} 13. Qh5 {[%clk 0:03:01.4]} 13... g6 {[%clk 0:02:15.8]}
14. Qh3 {[%clk 0:03:02.1]} 14... Be7 {[%clk 0:02:11.1]} 15. Rae1 {[%clk
0:02:38.7]} 15... Nf6 {[%clk 0:01:37.9]} 16. f4 {[%clk 0:01:26.7]} 16... exd4
{[%clk 0:01:36]} 17. f5 {[%clk 0:01:23.4]} 17... gxf5 {[%clk 0:01:32.2]} 18.
Bxf5 {[%clk 0:01:06]} 18... O-O-O {[%clk 0:01:27.1]} 19. Nxf7 {[%clk 0:00:34.1]}
19... exf5 {[%clk 0:01:27.2]} 20. Nxh8 {[%clk 0:00:34.2]} 20... Rxh8 {[%clk
0:01:26.5]} 21. Qxf5+ {[%clk 0:00:35.3]} 21... Kd8 {[%clk 0:01:09.4]} 22. Rxe7
{[%clk 0:00:33.4]} 22... Qxe7 {[%clk 0:01:07.8]} 23. Qxf6 {[%clk 0:00:34.7]}
23... Qxf6 {[%clk 0:01:08.3]} 24. Rxf6 {[%clk 0:00:35.8]} 24... dxc3 {[%clk
0:01:02.2]} 25. Bxc3 {[%clk 0:00:37.7]} 25... Re8 {[%clk 0:01:03.5]} 26. Rf7
{[%clk 0:00:31.9]} 26... Bd5 {[%clk 0:00:59.2]} 27. Bf6+ {[%clk 0:00:25.1]}
27... Kc8 {[%clk 0:00:59.4]} 28. Rxa7 {[%clk 0:00:26.1]} 28... Re2 {[%clk
0:00:58.6]} 29. g3 {[%clk 0:00:22.2]} 29... Rg2+ {[%clk 0:00:58.8]} 30. Kf1
{[%clk 0:00:23.5]} 30... Rxh2 {[%clk 0:00:59.9]} 31. Bd4 {[%clk 0:00:23.4]}
31... b5 {[%clk 0:00:56.9]} 32. Bf2 {[%clk 0:00:21.1]} 32... Rh1+ {[%clk
0:00:54.5]} 33. Ke2 {[%clk 0:00:21.8]} 33... Ra1 {[%clk 0:00:54.8]} 34. Bd4
{[%clk 0:00:19]} 34... Bc4+ {[%clk 0:00:46.5]} 35. Ke3 {[%clk 0:00:17.8]} 35...
Rg1 {[%clk 0:00:45.4]} 36. Kf4 {[%clk 0:00:16.7]} 36... Rf1+ {[%clk 0:00:44.6]}
37. Kg5 {[%clk 0:00:17.4]} 37... Bd3 {[%clk 0:00:45]} 38. Kh6 {[%clk 0:00:11.5]}
38... Rf3 {[%clk 0:00:38.7]} 39. Be5 {[%clk 0:00:12.1]} 39... Rf5 {[%clk
0:00:38.3]} 40. Bf4 {[%clk 0:00:12.9]} 40... Rc5 {[%clk 0:00:37.9]} 41. Rg7
{[%clk 0:00:09.7]} 41... Rc6+ {[%clk 0:00:36.6]} 42. Kg5 {[%clk 0:00:09.9]}
42... Ra6 {[%clk 0:00:37.9]} 43. Rg8+ {[%clk 0:00:05.3]} 43... Kd7 {[%clk
0:00:39]} 44. Rg7+ {[%clk 0:00:06.4]} 44... Ke6 {[%clk 0:00:38.4]} 45. Rb7
{[%clk 0:00:06.2]} 45... Rxa2 {[%clk 0:00:38.9]} 46. Rb6+ {[%clk 0:00:07.6]}
46... Kd5 {[%clk 0:00:39.2]} 47. Rd6+ {[%clk 0:00:06.4]} 47... Kc4 {[%clk
0:00:40]} 48. Rc6+ {[%clk 0:00:07.5]} 48... Kb3 {[%clk 0:00:41.1]} 49. Be5
{[%clk 0:00:08.9]} 49... Re2 {[%clk 0:00:41.4]} 50. Rc3+ {[%clk 0:00:09.1]}
50... Kb4 {[%clk 0:00:41.1]} 51. Rxd3 {[%clk 0:00:05.6]} 51... Rxe5+ {[%clk
0:00:42]} 52. Kh6 {[%clk 0:00:07.1]} 52... Re7 {[%clk 0:00:43]} 53. g4 {[%clk
0:00:08.2]} 53... Kc4 {[%clk 0:00:43.4]} 54. Rd1 {[%clk 0:00:06.7]} 54... b4
{[%clk 0:00:44.5]} 55. g5 {[%clk 0:00:05.3]} 55... b3 {[%clk 0:00:45.4]} 56. Kh5
{[%clk 0:00:04.3]} 56... b2 {[%clk 0:00:46]} 57. Kg4 {[%clk 0:00:04.9]} 57...
Kc3 {[%clk 0:00:47]} 58. Kf5 {[%clk 0:00:05.8]} 58... Kc2 {[%clk 0:00:47.8]} 59.
Rg1 {[%clk 0:00:07.7]} 59... b1=Q {[%clk 0:00:48.6]} 60. Rxb1 {[%clk 0:00:09.3]}
60... Kxb1 {[%clk 0:00:50.5]} 61. Kf6 {[%clk 0:00:11.2]} 61... Ra7 {[%clk
0:00:51.3]} 0-1

[Event "*** Monthly 3|2 Blitz Masters"]
[Site "Chess.com"]
[Date "2014.10.28"]
[Round "6"]
[White "KaydenTroffChess"]
[Black "THORK"]
[Result "1/2-1/2"]
[WhiteElo "2360"]
[BlackElo "2180"]
[TimeControl "180+2"]
[EndTime "13:06:22 PDT"]
[Termination "Game drawn - insufficient material"]

1. d4 {[%clk 0:03:00]} 1... Nf6 {[%clk 0:02:58.5]} 2. c4 {[%clk 0:02:59.2]} 2...
c5 {[%clk 0:02:57.8]} 3. d5 {[%clk 0:02:59.9]} 3... g6 {[%clk 0:02:58.2]} 4. Nc3
{[%clk 0:03:00.1]} 4... Bg7 {[%clk 0:02:59.5]} 5. e4 {[%clk 0:02:58.7]} 5... d6
{[%clk 0:03:00.8]} 6. f4 {[%clk 0:02:59.4]} 6... O-O {[%clk 0:03:02.2]} 7. Nf3
{[%clk 0:03:00.3]} 7... e6 {[%clk 0:03:03.7]} 8. Be2 {[%clk 0:02:51]} 8... exd5
{[%clk 0:03:04.9]} 9. cxd5 {[%clk 0:02:52.2]} 9... Bg4 {[%clk 0:03:03.8]} 10. h3
{[%clk 0:02:48.4]} 10... Bxf3 {[%clk 0:03:04.9]} 11. Bxf3 {[%clk 0:02:50.1]}
11... a6 {[%clk 0:03:02.5]} 12. a4 {[%clk 0:02:49.2]} 12... Nbd7 {[%clk
0:03:03.4]} 13. O-O {[%clk 0:02:48.1]} 13... Rb8 {[%clk 0:03:04.1]} 14. g4
{[%clk 0:02:38.8]} 14... b5 {[%clk 0:03:03.3]} 15. axb5 {[%clk 0:02:39.7]} 15...
axb5 {[%clk 0:03:04.8]} 16. g5 {[%clk 0:02:40.7]} 16... Ne8 {[%clk 0:03:04.6]}
17. h4 {[%clk 0:02:39.1]} 17... b4 {[%clk 0:03:04.8]} 18. Ne2 {[%clk 0:02:38.6]}
18... f5 {[%clk 0:03:05.9]} 19. exf5 {[%clk 0:02:38]} 19... gxf5 {[%clk
0:03:06]} 20. Ng3 {[%clk 0:02:37.1]} 20... Bd4+ {[%clk 0:03:03.3]} 21. Kg2
{[%clk 0:02:37.7]} 21... Nc7 {[%clk 0:02:54.8]} 22. h5 {[%clk 0:02:37.6]} 22...
Nb6 {[%clk 0:02:50.4]} 23. Qd3 {[%clk 0:02:33.7]} 23... Qd7 {[%clk 0:02:49.4]}
24. Ne2 {[%clk 0:02:23.9]} 24... Bg7 {[%clk 0:02:47]} 25. h6 {[%clk 0:02:24.2]}
25... Bh8 {[%clk 0:02:48.3]} 26. Rh1 {[%clk 0:02:22.4]} 26... Kf7 {[%clk
0:02:46.2]} 27. Ra7 {[%clk 0:02:08.3]} 27... Ra8 {[%clk 0:02:44.9]} 28. Rb7
{[%clk 0:02:02.3]} 28... Rfb8 {[%clk 0:02:46]} 29. Rxb8 {[%clk 0:02:01.3]} 29...
Rxb8 {[%clk 0:02:47.4]} 30. Ng3 {[%clk 0:02:02.5]} 30... c4 {[%clk 0:02:44.7]}
31. Qxf5+ {[%clk 0:01:54.7]} 31... Qxf5 {[%clk 0:02:45]} 32. Nxf5 {[%clk
0:01:56.6]} 32... Rd8 {[%clk 0:02:33.9]} 33. Bh5+ {[%clk 0:01:47.5]} 33... Kf8
{[%clk 0:02:34.6]} 34. Bf3 {[%clk 0:01:43.4]} 34... Ncxd5 {[%clk 0:02:32.1]} 35.
Rd1 {[%clk 0:01:44]} 35... Ne7 {[%clk 0:02:29.5]} 36. Rxd6 {[%clk 0:01:41.2]}
36... Rxd6 {[%clk 0:02:27.9]} 37. Nxd6 {[%clk 0:01:43.1]} 37... b3 {[%clk
0:02:15.9]} 38. f5 {[%clk 0:01:40.3]} 38... Be5 {[%clk 0:02:16.4]} 39. Be3
{[%clk 0:01:24.5]} 39... Bxd6 {[%clk 0:01:59.5]} 40. Bxb6 {[%clk 0:01:25.2]}
40... Nxf5 {[%clk 0:02:00.5]} 41. Bd5 {[%clk 0:01:24.9]} 41... Bf4 {[%clk
0:02:00]} 42. Bc5+ {[%clk 0:01:21]} 42... Ke8 {[%clk 0:02:00.2]} 43. g6 {[%clk
0:01:21.2]} 43... hxg6 {[%clk 0:01:57.4]} 44. h7 {[%clk 0:01:21.4]} 44... Be5
{[%clk 0:01:58.7]} 45. Bxc4 {[%clk 0:01:21.8]} 45... Bxb2 {[%clk 0:01:59.1]} 46.
Bxb3 {[%clk 0:01:22.9]} 46... Bf6 {[%clk 0:01:38.9]} 47. Kf3 {[%clk 0:01:13.4]}
47... Nh6 {[%clk 0:01:37]} 48. Ke4 {[%clk 0:01:10.8]} 48... Nf7 {[%clk
0:01:37.6]} 49. Be3 {[%clk 0:00:57.5]} 49... Kf8 {[%clk 0:01:35.9]} 50. Kd5
{[%clk 0:00:56]} 50... Kg7 {[%clk 0:01:36]} 51. Ke6 {[%clk 0:00:50.1]} 51...
Ng5+ {[%clk 0:01:37]} 52. Kd7 {[%clk 0:00:45.8]} 52... Kxh7 {[%clk 0:01:37.7]}
53. Ke8 {[%clk 0:00:46.4]} 53... Kg7 {[%clk 0:01:38.1]} 54. Bc5 {[%clk
0:00:46.4]} 54... Ne4 {[%clk 0:01:37.4]} 55. Bf8+ {[%clk 0:00:46.8]} 55... Kh8
{[%clk 0:01:32.7]} 56. Kf7 {[%clk 0:00:46.6]} 56... Bc3 {[%clk 0:01:19.1]} 57.
Kxg6 {[%clk 0:00:44.9]} 57... Nd2 {[%clk 0:01:18.3]} 58. Bd5 {[%clk 0:00:45.2]}
58... Nf1 {[%clk 0:01:18.4]} 59. Bh6 {[%clk 0:00:43.6]} 59... Nd2 {[%clk
0:01:18.4]} 60. Bf4 {[%clk 0:00:39.6]} 60... Nf1 {[%clk 0:01:18.4]} 61. Kf5
{[%clk 0:00:25.5]} 61... Nd2 {[%clk 0:01:17.8]} 62. Kg6 {[%clk 0:00:24.6]} 62...
Nf1 {[%clk 0:01:18.1]} 63. Bg5 {[%clk 0:00:25.4]} 63... Nd2 {[%clk 0:01:18.7]}
64. Bh6 {[%clk 0:00:25.8]} 64... Nf1 {[%clk 0:01:19.5]} 65. Bc1 {[%clk
0:00:22.1]} 65... Nd2 {[%clk 0:01:20.3]} 66. Kf5 {[%clk 0:00:22.2]} 66... Kg7
{[%clk 0:01:20.4]} 67. Kf4 {[%clk 0:00:22.8]} 67... Kf6 {[%clk 0:01:21.4]} 68.
Ke3 {[%clk 0:00:22.8]} 68... Nf1+ {[%clk 0:01:15.5]} 69. Kd3 {[%clk 0:00:21.3]}
69... Be5 {[%clk 0:01:16.3]} 70. Ke2 {[%clk 0:00:20.5]} 70... Ng3+ {[%clk
0:01:17.5]} 71. Kf3 {[%clk 0:00:21.7]} 71... Nf5 {[%clk 0:01:19.4]} 72. Kg4
{[%clk 0:00:18.9]} 72... Nd4 {[%clk 0:01:17.8]} 73. Bg5+ {[%clk 0:00:19.7]}
73... Kg6 {[%clk 0:01:18.1]} 74. Be4+ {[%clk 0:00:20.7]} 74... Kf7 {[%clk
0:01:19]} 75. Bh4 {[%clk 0:00:21.5]} 75... Ke6 {[%clk 0:01:20]} 76. Bb1 {[%clk
0:00:21.3]} 76... Kd5 {[%clk 0:01:20.2]} 77. Ba2+ {[%clk 0:00:21.3]} 77... Kd6
{[%clk 0:01:21.5]} 78. Bg5 {[%clk 0:00:21.6]} 78... Ne2 {[%clk 0:01:22.1]} 79.
Kf3 {[%clk 0:00:21.5]} 79... Nc3 {[%clk 0:01:23.4]} 80. Bb3 {[%clk 0:00:22]}
80... Bd4 {[%clk 0:01:24.4]} 81. Bh6 {[%clk 0:00:20.9]} 81... Kc5 {[%clk
0:01:26.3]} 82. Bf8+ {[%clk 0:00:22.1]} 82... Kb5 {[%clk 0:01:27.1]} 83. Bf7
{[%clk 0:00:22.5]} 83... Kc6 {[%clk 0:01:27.8]} 84. Be8+ {[%clk 0:00:23.1]}
84... Kd5 {[%clk 0:01:29.1]} 85. Bf7+ {[%clk 0:00:23.4]} 85... Kc6 {[%clk
0:01:30.3]} 86. Kf4 {[%clk 0:00:22.8]} 86... Kb5 {[%clk 0:01:31.2]} 87. Kf5
{[%clk 0:00:21.7]} 87... Kc6 {[%clk 0:01:31.2]} 88. Kg4 {[%clk 0:00:22.6]} 88...
Kb5 {[%clk 0:01:32.3]} 89. Kf3 {[%clk 0:00:23.9]} 89... Kc6 {[%clk 0:01:33.5]}
90. Kg2 {[%clk 0:00:25.2]} 90... Kb5 {[%clk 0:01:34.8]} 91. Kf1 {[%clk
0:00:26.5]} 91... Kc6 {[%clk 0:01:35.9]} 92. Ke1 {[%clk 0:00:27.9]} 92... Kb5
{[%clk 0:01:37.2]} 93. Kd2 {[%clk 0:00:29.2]} 93... Bf6 {[%clk 0:01:36.3]} 94.
Kd3 {[%clk 0:00:29.3]} 94... Kc6 {[%clk 0:01:37.1]} 95. Kc4 {[%clk 0:00:29.3]}
95... Kd7 {[%clk 0:01:35.5]} 96. Kd3 {[%clk 0:00:25.5]} 96... Nb5 {[%clk
0:01:34.6]} 97. Ke4 {[%clk 0:00:24.5]} 97... Nd6+ {[%clk 0:01:35.4]} 98. Kd5
{[%clk 0:00:23.8]} 98... Nxf7 {[%clk 0:01:36.4]} 99. Bc5 {[%clk 0:00:25]} 99...
Nd8 {[%clk 0:01:36.4]} 100. Bd4 {[%clk 0:00:26]} 100... Bxd4 {[%clk 0:01:37.4]}
101. Kxd4 {[%clk 0:00:27.1]} 1/2-1/2

[Event "*** Monthly 3|2 Blitz Masters"]
[Site "Chess.com"]
[Date "2014.10.28"]
[Round "7"]
[White "mokerslag"]
[Black "alexsuper1987"]
[Result "1-0"]
[WhiteElo "2308"]
[BlackElo "2051"]
[TimeControl "180+2"]
[EndTime "13:09:32 PDT"]
[Termination "mokerslag won by resignation"]

1. e4 {[%clk 0:03:00]} 1... Nc6 {[%clk 0:02:58.4]} 2. Nf3 {[%clk 0:03:00.3]}
2... f5 {[%clk 0:02:58]} 3. e5 {[%clk 0:02:56.6]} 3... d6 {[%clk 0:02:58.9]} 4.
exd6 {[%clk 0:02:56.9]} 4... cxd6 {[%clk 0:02:59.7]} 5. Bc4 {[%clk 0:02:54.3]}
5... Nf6 {[%clk 0:03:00.5]} 6. d4 {[%clk 0:02:53.6]} 6... d5 {[%clk 0:03:01.9]}
7. Bb5 {[%clk 0:02:52.9]} 7... e6 {[%clk 0:03:03.1]} 8. O-O {[%clk 0:02:52.6]}
8... Bd6 {[%clk 0:03:03.9]} 9. Re1 {[%clk 0:02:45.2]} 9... O-O {[%clk
0:03:02.8]} 10. Ne5 {[%clk 0:02:37.2]} 10... Ne4 {[%clk 0:02:58]} 11. Bxc6
{[%clk 0:02:16.3]} 11... bxc6 {[%clk 0:02:56.6]} 12. f3 {[%clk 0:02:16.7]} 12...
Bxe5 {[%clk 0:02:52.4]} 13. dxe5 {[%clk 0:02:16.4]} 13... Qb6+ {[%clk 0:02:46]}
14. Be3 {[%clk 0:02:13.4]} 14... Qxb2 {[%clk 0:02:46]} 15. Bd4 {[%clk
0:02:10.9]} 15... Qb7 {[%clk 0:02:23]} 16. fxe4 {[%clk 0:02:11.3]} 16... c5
{[%clk 0:02:22.1]} 17. Bxc5 {[%clk 0:02:09.9]} 1-0

[Event "*** Monthly 3|2 Blitz Masters"]
[Site "Chess.com"]
[Date "2014.10.28"]
[Round "7"]
[White "ruzomberok"]
[Black "oggy1984"]
[Result "0-1"]
[WhiteElo "2204"]
[BlackElo "2225"]
[TimeControl "180+2"]
[EndTime "13:10:42 PDT"]
[Termination "oggy1984 won by resignation"]

1. d4 {[%clk 0:03:00]} 1... Nf6 {[%clk 0:02:58.7]} 2. Bg5 {[%clk 0:02:59.8]}
2... Ne4 {[%clk 0:02:54.8]} 3. h4 {[%clk 0:03:00.5]} 3... d5 {[%clk 0:02:55.8]}
4. e3 {[%clk 0:03:01.3]} 4... c5 {[%clk 0:02:56.1]} 5. Bd3 {[%clk 0:03:00.4]}
5... Nf6 {[%clk 0:02:55.3]} 6. c3 {[%clk 0:02:55.3]} 6... Nc6 {[%clk 0:02:55.5]}
7. Nd2 {[%clk 0:02:54.9]} 7... Qb6 {[%clk 0:02:51.3]} 8. Qb3 {[%clk 0:02:49.9]}
8... c4 {[%clk 0:02:36.5]} 9. Qxb6 {[%clk 0:02:49.1]} 9... axb6 {[%clk
0:02:38.4]} 10. Bc2 {[%clk 0:02:46]} 10... b5 {[%clk 0:02:32]} 11. Bxf6 {[%clk
0:02:45.9]} 11... gxf6 {[%clk 0:02:32]} 12. e4 {[%clk 0:02:47.8]} 12... Be6
{[%clk 0:02:15.3]} 13. Ne2 {[%clk 0:02:47.4]} 13... dxe4 {[%clk 0:02:06.4]} 14.
Nxe4 {[%clk 0:02:45.4]} 14... O-O-O {[%clk 0:02:01.2]} 15. Nf4 {[%clk
0:02:39.5]} 15... Bf5 {[%clk 0:01:43.4]} 16. O-O-O {[%clk 0:02:32.4]} 16... Bh6
{[%clk 0:01:31.9]} 17. g3 {[%clk 0:02:27.3]} 17... Bxe4 {[%clk 0:01:28.9]} 18.
Bxe4 {[%clk 0:02:20.3]} 18... e5 {[%clk 0:01:29.5]} 19. Bxc6 {[%clk 0:02:10.8]}
19... bxc6 {[%clk 0:01:29.4]} 20. dxe5 {[%clk 0:02:12.7]} 20... fxe5 {[%clk
0:01:29.9]} 21. Rxd8+ {[%clk 0:02:12.8]} 21... Rxd8 {[%clk 0:01:30]} 0-1

[Event "*** Monthly 3|2 Blitz Masters"]
[Site "Chess.com"]
[Date "2014.10.28"]
[Round "7"]
[White "XeresLt"]
[Black "AlmirDzhumaev"]
[Result "1-0"]
[WhiteElo "2277"]
[BlackElo "2191"]
[TimeControl "180+2"]
[EndTime "13:11:22 PDT"]
[Termination "XeresLt won by resignation"]

1. e4 {[%clk 0:03:00]} 1... e5 {[%clk 0:02:57.5]} 2. Nf3 {[%clk 0:03:00.2]} 2...
Nc6 {[%clk 0:02:58.8]} 3. Bb5 {[%clk 0:03:00.5]} 3... a6 {[%clk 0:03:00]} 4. Ba4
{[%clk 0:03:00.7]} 4... Nf6 {[%clk 0:03:00.8]} 5. O-O {[%clk 0:03:01.4]} 5... b5
{[%clk 0:03:02]} 6. Bb3 {[%clk 0:03:02]} 6... Be7 {[%clk 0:03:03.6]} 7. c3
{[%clk 0:03:03.3]} 7... O-O {[%clk 0:03:03]} 8. Re1 {[%clk 0:03:04.2]} 8... d6
{[%clk 0:03:03.7]} 9. h3 {[%clk 0:03:05.3]} 9... Bb7 {[%clk 0:03:04.8]} 10. d4
{[%clk 0:03:02.1]} 10... Qd7 {[%clk 0:03:03.1]} 11. Nbd2 {[%clk 0:02:56.5]}
11... exd4 {[%clk 0:02:51.6]} 12. cxd4 {[%clk 0:02:56.1]} 12... Rad8 {[%clk
0:02:48.1]} 13. Bc2 {[%clk 0:02:40.9]} 13... Nb4 {[%clk 0:02:47.5]} 14. Bb1
{[%clk 0:02:41.4]} 14... c5 {[%clk 0:02:48.5]} 15. d5 {[%clk 0:02:38.3]} 15...
a5 {[%clk 0:02:44]} 16. Nf1 {[%clk 0:02:34.3]} 16... Rfe8 {[%clk 0:02:43.4]} 17.
Ng3 {[%clk 0:02:35.3]} 17... Bf8 {[%clk 0:02:43.9]} 18. Bg5 {[%clk 0:02:32.9]}
18... Be7 {[%clk 0:02:40.9]} 19. Nf5 {[%clk 0:02:33.1]} 19... h6 {[%clk
0:02:06.5]} 20. Bh4 {[%clk 0:02:20.1]} 20... Kh7 {[%clk 0:01:59.2]} 21. Qd2
{[%clk 0:02:18.8]} 21... g5 {[%clk 0:01:57.3]} 22. Bxg5 {[%clk 0:02:05.2]} 22...
Nfxd5 {[%clk 0:01:40.5]} 23. Bxe7 {[%clk 0:01:56.7]} 23... Qe6 {[%clk
0:01:31.4]} 24. exd5 {[%clk 0:01:55.2]} 1-0